bitfinex/quotes_BTCUSD_20240623
["timestamp","ask_amount","ask_price","bid_price","bid_amount"]
[1719138046092,0.23407049,64464.0,64463.0,1.04011484]
[1719138046517,0.18234976,64464.0,64463.0,1.04011484]
[1719138046702,0.2340496,64464.0,64463.0,1.04011484]
[1719138048014,0.2540496,64464.0,64463.0,1.04011484]
[1719138048215,0.3911259,64464.0,64463.0,1.04011484]
[1719138049510,0.39116714,64464.0,64463.0,1.04011484]
[1719138050119,0.40983091,64464.0,64463.0,1.04011484]
[1719138050931,0.38983091,64464.0,64463.0,1.04011484]
[1719138051302,0.40983091,64464.0,64463.0,1.04011484]
[1719138051517,0.40983565,64464.0,64463.0,1.04011484]
[1719138052472,0.22295132,64464.0,64463.0,1.04011484]
[1719138052795,0.2526084,64464.0,64463.0,1.04011484]
[1719138053410,0.0974834,64464.0,64463.0,1.04011484]
[1719138055636,0.09740075,64464.0,64463.0,1.04011484]
[1719138056272,0.07740075,64464.0,64463.0,1.04011484]
[1719138058597,0.02722476,64464.0,64463.0,1.04011484]
[1719138058799,0.07767426,64464.0,64463.0,1.04011484]
[1719138059177,0.02722476,64464.0,64463.0,1.04011484]
[1719138059377,0.07766084,64464.0,64463.0,1.04011484]
[1719138060617,0.07765536,64464.0,64463.0,1.04011484]
[1719138061217,0.07762918,64464.0,64463.0,1.04011484]
[1719138061715,0.09762918,64464.0,64463.0,1.04011484]
[1719138062292,0.07762918,64464.0,64463.0,1.04011484]
[1719138064197,0.077712,64464.0,64463.0,1.04011484]
[1719138064863,0.077712,64464.0,64463.0,1.04104984]
[1719138065082,0.232837,64464.0,64463.0,1.04104984]
[1719138065292,0.252837,64464.0,64463.0,1.04104984]
[1719138065460,0.097712,64464.0,64463.0,1.04104984]
[1719138065672,0.077712,64464.0,64463.0,1.04104984]
[1719138066536,0.097712,64464.0,64463.0,1.04104984]
[1719138066779,0.077712,64464.0,64463.0,1.04104984]
[1719138067284,0.06591795,64464.0,64463.0,1.04104984]
[1719138067480,0.07557421,64464.0,64463.0,1.04104984]
[1719138067689,0.02722476,64464.0,64463.0,1.04104984]
[1719138067897,0.0755742,64464.0,64463.0,1.04104984]
[1719138070284,0.07573155,64464.0,64463.0,1.04104984]
[1719138073204,0.07662979,64464.0,64463.0,1.04104984]
[1719138076327,0.07712636,64464.0,64463.0,1.04104984]
[1719138076859,0.07712637,64464.0,64463.0,1.04104984]
[1719138078059,0.0770832,64464.0,64463.0,1.04104984]
[1719138078262,0.23423717,64464.0,64463.0,1.04104984]
[1719138078644,0.0770832,64464.0,64463.0,1.04104984]
[1719138082155,0.067427,64464.0,64463.0,1.04104984]
[1719138082348,0.07663919,64464.0,64463.0,1.04104984]
[1719138085291,0.02722476,64464.0,64463.0,1.04104984]
[1719138085501,0.02722476,64464.0,64463.0,1.19617684]
[1719138085502,0.066971,64464.0,64463.0,1.19617684]
[1719138085701,0.07662731,64464.0,64463.0,1.19617684]
[1719138085907,0.07662745,64464.0,64463.0,1.19617684]
[1719138087165,0.02722476,64464.0,64463.0,1.19617684]
[1719138087368,0.03688118,64464.0,64463.0,1.19617684]
[1719138088339,0.03688119,64464.0,64463.0,1.19617684]
[1719138089750,0.03688119,64464.0,64463.0,1.81013184]
[1719138089925,0.17650688,64464.0,64463.0,1.81013184]
[1719138091300,0.16683314,64464.0,64463.0,1.81013184]
[1719138091468,0.17648921,64464.0,64463.0,1.81013184]
[1719138091625,0.03688083,64464.0,64463.0,1.81013184]
[1719138094262,0.10762476,64471.0,64466.0,0.155119]
[1719138094468,0.02638135,64470.0,64467.0,0.1641]
[1719138094676,0.07864337,64470.0,64467.0,0.1641]
[1719138094878,0.07864318,64469.0,64467.0,0.17640678]
[1719138095139,0.10762476,64471.0,64467.0,0.17640678]
[1719138095140,0.03603742,64468.0,64467.0,0.17640678]
[1719138095346,0.0784748,64468.0,64467.0,0.17640678]
[1719138095557,0.03588279,64468.0,64467.0,0.17640678]
[1719138095760,0.02,64475.0,64469.0,0.1641]
[1719138095965,0.02,64473.0,64469.0,0.1641]
[1719138096136,0.06580013,64472.0,64470.0,0.01230614]
[1719138096344,0.06580013,64471.0,64470.0,0.31600614]
[1719138096539,0.06580013,64471.0,64470.0,1.09155814]
[1719138096540,0.02428469,64471.0,64470.0,1.09155814]
[1719138096742,0.1,64474.0,64472.0,0.449812]
[1719138096922,0.06579479,64473.0,64472.0,0.769018]
[1719138097130,0.02428318,64473.0,64472.0,0.769018]
[1719138097334,0.06625148,64473.0,64472.0,0.458806]
[1719138099405,0.06625148,64473.0,64472.0,0.471806]
[1719138099406,0.02428318,64473.0,64472.0,0.471806]
[1719138099638,0.02428317,64475.0,64473.0,0.155103]
[1719138099864,0.0420696,64474.0,64473.0,0.155103]
[1719138100073,0.06635277,64474.0,64473.0,0.155103]
[1719138101321,0.06635277,64474.0,64473.0,0.180103]
[1719138101496,0.06635277,64474.0,64473.0,0.1924085]
[1719138102537,0.06635277,64474.0,64473.0,0.1784085]
[1719138102788,0.06635277,64474.0,64473.0,0.1924085]
[1719138103517,0.02428317,64474.0,64473.0,0.1924085]
[1719138103751,0.04237241,64474.0,64473.0,0.1924085]
[1719138103988,0.02428317,64475.0,64473.0,0.1924085]
[1719138104212,0.1285,64476.0,64473.0,0.1674085]
[1719138104213,0.06665558,64474.0,64473.0,0.1674085]
[1719138104430,0.06665558,64474.0,64473.0,0.1924085]
[1719138104659,0.06665558,64474.0,64473.0,0.1814085]
[1719138105763,0.07631221,64474.0,64473.0,0.1674085]
[1719138106095,0.07631221,64474.0,64473.0,0.1814085]
[1719138106569,0.07628375,64474.0,64473.0,0.1674085]
[1719138106745,0.07628375,64474.0,64473.0,0.1814085]
[1719138107016,0.07628375,64474.0,64473.0,0.1954085]
[1719138108463,0.07628375,64474.0,64473.0,0.3605085]
[1719138109416,0.02428317,64474.0,64473.0,0.3605085]
[1719138109614,0.07641684,64474.0,64473.0,0.3605085]
[1719138111342,0.21582842,64474.0,64473.0,0.3605085]
[1719138111550,0.31582842,64474.0,64473.0,0.3605085]
[1719138112614,0.31583512,64474.0,64473.0,0.8100155]
[1719138112919,0.13393911,64474.0,64473.0,0.4998085]
[1719138113138,0.13393911,64474.0,64473.0,0.8100155]
[1719138113340,0.12428317,64474.0,64473.0,0.8100155]
[1719138113510,0.13393936,64474.0,64473.0,0.8100155]
[1719138113825,0.13393936,64474.0,64473.0,0.7960155]
[1719138114030,0.13393936,64474.0,64473.0,0.7820155]
[1719138114217,0.13393936,64474.0,64473.0,0.7960155]
[1719138114379,0.13393936,64474.0,64473.0,0.8100155]
[1719138114603,0.13393936,64474.0,64473.0,0.7960155]
[1719138114959,0.13393936,64474.0,64473.0,0.8100155]
[1719138115399,0.13393936,64474.0,64473.0,0.4998085]
[1719138115618,0.03393923,64474.0,64473.0,0.4998085]
[1719138116188,0.03393923,64474.0,64473.0,0.4858085]
[1719138116388,0.07819886,64474.0,64473.0,0.4998085]
[1719138116655,0.03393923,64474.0,64473.0,0.4998085]
[1719138117661,0.0781837,64474.0,64473.0,0.4998085]
[1719138118670,0.07811353,64474.0,64473.0,0.4998085]
[1719138121027,0.0339393,64474.0,64473.0,0.4998085]
[1719138121390,0.07738767,64474.0,64473.0,0.4998085]
[1719138121615,0.02428317,64474.0,64473.0,0.4998085]
[1719138122092,0.07738767,64474.0,64473.0,0.4998085]
[1719138122468,0.07738767,64474.0,64473.0,0.4858085]
[1719138122875,0.07704867,64474.0,64473.0,0.4858085]
[1719138123048,0.07704867,64474.0,64473.0,0.4998085]
[1719138123490,0.21648738,64474.0,64473.0,0.4858085]
[1719138124268,0.02428317,64474.0,64473.0,0.4998085]
[1719138124520,0.14910411,64474.0,64473.0,0.4998085]
[1719138124763,0.21646087,64474.0,64473.0,0.4998085]
[1719138127249,0.16374921,64474.0,64473.0,0.4998085]
[1719138127451,0.21650302,64474.0,64473.0,0.4998085]
[1719138129386,0.21650302,64474.0,64473.0,0.5007435]
[1719138129615,0.07703698,64474.0,64473.0,0.5007435]
[1719138129784,0.07788698,64474.0,64473.0,0.5007435]
[1719138130351,0.02513317,64474.0,64473.0,0.5007435]
[1719138130700,0.03478937,64474.0,64473.0,0.5007435]
[1719138130911,0.07791915,64474.0,64473.0,0.5007435]
[1719138132389,0.07791108,64474.0,64473.0,0.5007435]
[1719138133746,0.07790199,64474.0,64473.0,0.5007435]
[1719138136640,0.02513317,64474.0,64473.0,0.5007435]
[1719138136810,0.03478939,64474.0,64473.0,0.5007435]
[1719138137025,0.077053,64474.0,64473.0,0.5007435]
[1719138137391,0.077053,64474.0,64473.0,0.3614435]
[1719138139358,0.097053,64474.0,64473.0,0.2063405]
[1719138139568,0.077053,64474.0,64473.0,0.2063405]
[1719138139739,0.02513317,64474.0,64473.0,0.2063405]
[1719138139959,0.03478929,64474.0,64473.0,0.2063405]
[1719138140159,0.07702605,64474.0,64473.0,0.2063405]
[1719138140361,0.07702672,64474.0,64473.0,0.2063405]
[1719138141567,0.06652905,64474.0,64473.0,0.2063405]
[1719138141774,0.07618532,64474.0,64473.0,0.2063405]
[1719138142995,0.07626003,64474.0,64473.0,0.2063405]
[1719138146099,0.02513317,64474.0,64473.0,0.2063405]
[1719138146217,0.07620999,64474.0,64473.0,0.2063405]
[1719138148980,0.07620999,64474.0,64473.0,1.2063405]
[1719138149183,0.02513317,64474.0,64473.0,1.2063405]
[1719138149384,0.03478949,64474.0,64473.0,1.2063405]
[1719138149587,0.07621062,64474.0,64473.0,1.2063405]
[1719138149788,0.02513317,64474.0,64473.0,1.2063405]
[1719138149986,0.03478948,64474.0,64473.0,1.2063405]
[1719138150307,0.07621934,64474.0,64473.0,1.2063405]
[1719138150930,0.03478955,64474.0,64473.0,1.2063405]
[1719138151070,0.07621705,64474.0,64473.0,1.2063405]
[1719138152218,0.02513317,64474.0,64473.0,1.2063405]
[1719138152442,0.07621585,64474.0,64473.0,1.2063405]
[1719138155247,0.07621585,64474.0,64473.0,1.3406405]
[1719138155453,0.0665549,64474.0,64473.0,1.3406405]
[1719138155632,0.0762111,64474.0,64473.0,1.4957435]
[1719138156708,0.0762111,64474.0,64473.0,1.3406405]
[1719138158609,0.02513317,64474.0,64473.0,1.3406405]
[1719138158811,0.07706893,64474.0,64473.0,1.3406405]
[1719138159023,0.0674129,64474.0,64473.0,1.3406405]
[1719138159182,0.07716457,64474.0,64473.0,1.3406405]
[1719138160153,0.03478918,64474.0,64473.0,1.3406405]
[1719138160363,0.07714537,64474.0,64473.0,1.4817435]
[1719138160493,0.07714531,64474.0,64473.0,1.4957435]
[1719138161957,0.07714531,64474.0,64473.0,1.4817435]
[1719138161958,0.07716981,64474.0,64473.0,1.4817435]
[1719138162147,0.07716981,64474.0,64473.0,1.4957435]
[1719138163438,0.07716981,64474.0,64473.0,1.8059505]
[1719138163641,0.07716981,64474.0,64473.0,1.4957435]
[1719138165058,0.07865057,64474.0,64473.0,1.4957435]
[1719138165471,0.07865057,64474.0,64473.0,1.8059505]
[1719138168041,0.03478934,64474.0,64473.0,1.8059505]
[1719138168241,0.07869626,64474.0,64473.0,1.8059505]
[1719138168674,0.02513317,64474.0,64473.0,1.8059505]
[1719138168848,0.03478938,64474.0,64473.0,1.8059505]
[1719138169224,0.07869626,64474.0,64473.0,1.8086505]
[1719138171291,0.03478949,64474.0,64473.0,1.8086505]
[1719138171537,0.0790216,64474.0,64473.0,1.8086505]
[1719138174274,0.02513317,64474.0,64473.0,1.8086505]
[1719138174480,0.07896967,64474.0,64473.0,1.8086505]
[1719138175684,0.07546167,64474.0,64473.0,1.8086505]
[1719138176724,0.07546167,64474.0,64473.0,1.4984435]
[1719138176927,0.07546167,64474.0,64473.0,1.3433405]
[1719138177564,0.02162517,64474.0,64473.0,1.3433405]
[1719138177761,0.03128127,64474.0,64473.0,1.3433405]
[1719138177943,0.02162517,64474.0,64473.0,1.4984435]
[1719138178144,0.07516122,64474.0,64473.0,1.4984435]
[1719138179399,0.07516211,64474.0,64473.0,1.4984435]
[1719138180747,0.07520465,64474.0,64473.0,1.4984435]
[1719138183022,0.06548493,64474.0,64473.0,1.4984435]
[1719138183361,0.07514102,64474.0,64473.0,1.4984435]
[1719138185634,0.07514102,64474.0,64473.0,1.3433405]
[1719138186059,0.02162517,64474.0,64473.0,1.3433405]
[1719138186252,0.03128129,64474.0,64473.0,1.3433405]
[1719138186666,0.02162517,64474.0,64473.0,1.3433405]
[1719138187019,0.07501927,64474.0,64473.0,1.4984435]
[1719138187498,0.07501927,64474.0,64473.0,1.3433405]
[1719138187981,0.02162517,64474.0,64473.0,1.3433405]
[1719138188187,0.07497442,64474.0,64473.0,1.3433405]
[1719138189262,0.02162517,64474.0,64473.0,1.3433405]
[1719138189468,0.07446187,64474.0,64473.0,1.3433405]
[1719138192354,0.06495825,64474.0,64473.0,1.3433405]
[1719138192559,0.0746145,64474.0,64473.0,1.3433405]
[1719138195452,0.03128142,64474.0,64473.0,1.3433405]
[1719138195651,0.07457923,64474.0,64473.0,1.3433405]
[1719138195951,0.06492298,64474.0,64473.0,1.3433405]
[1719138196181,0.11787705,64474.0,64473.0,1.3293405]
[1719138196544,0.11787705,64474.0,64473.0,1.3433405]
[1719138197457,0.11787705,64474.0,64473.0,1.3293405]
[1719138198610,0.06492298,64474.0,64473.0,1.3433405]
[1719138198810,0.11788397,64474.0,64473.0,1.3433405]
[1719138199166,0.11788397,64474.0,64473.0,1.3293405]
[1719138199576,0.13788397,64474.0,64473.0,1.3293405]
[1719138199773,0.13788397,64474.0,64473.0,1.3433405]
[1719138200929,0.11788397,64474.0,64473.0,1.3433405]
[1719138201459,0.13788397,64474.0,64473.0,1.3433405]
[1719138201797,0.13791695,64474.0,64473.0,1.3433405]
[1719138202652,0.11791695,64474.0,64473.0,1.3433405]
[1719138204978,0.11788375,64474.0,64473.0,1.3433405]
[1719138205381,0.06492298,64474.0,64473.0,1.3433405]
[1719138205537,0.11788166,64474.0,64473.0,1.3433405]
[1719138206806,0.1178235,64474.0,64473.0,1.3433405]
[1719138208146,0.11786177,64474.0,64473.0,1.3433405]
[1719138210231,0.13786177,64474.0,64473.0,1.3433405]
[1719138210651,0.11786177,64474.0,64473.0,1.3433405]
[1719138210852,0.13786177,64474.0,64473.0,1.3433405]
[1719138211594,0.11786177,64474.0,64473.0,1.3433405]
[1719138211998,0.09456396,64474.0,64473.0,1.3433405]
[1719138212307,0.07456396,64474.0,64473.0,1.3433405]
[1719138214877,0.0745205,64474.0,64473.0,1.3433405]
[1719138216187,0.07452004,64474.0,64473.0,1.3433405]
[1719138217388,0.07453284,64474.0,64473.0,1.3433405]
[1719138217589,0.09453284,64474.0,64473.0,1.3433405]
[1719138220284,0.04162517,64474.0,64473.0,1.3433405]
[1719138220484,0.09453441,64474.0,64473.0,1.3433405]
[1719138220704,0.02162517,64474.0,64473.0,1.3433405]
[1719138220836,0.07447262,64474.0,64473.0,1.3433405]
[1719138222353,0.25164751,64474.0,64473.0,1.3433405]
[1719138223147,0.23164751,64474.0,64473.0,1.3433405]
[1719138223961,0.23201326,64474.0,64473.0,1.3433405]
[1719138224428,0.1787802,64474.0,64473.0,1.3433405]
[1719138224653,0.23200754,64474.0,64473.0,1.3433405]
[1719138225753,0.23204034,64474.0,64473.0,1.3433405]
[1719138226891,0.23203688,64474.0,64473.0,1.3433405]
[1719138230012,0.23202921,64474.0,64473.0,1.3433405]
[1719138232104,0.07488966,64474.0,64473.0,1.3433405]
[1719138233038,0.03128202,64474.0,64473.0,1.3433405]
[1719138233237,0.07501616,64474.0,64473.0,1.3433405]
[1719138235028,0.07503248,64474.0,64473.0,1.3433405]
[1719138236400,0.07500421,64474.0,64473.0,1.3433405]
[1719138239345,0.02162517,64474.0,64473.0,1.3433405]
[1719138239548,0.07520371,64474.0,64473.0,1.3433405]
[1719138241929,0.07520373,64474.0,64473.0,1.3433405]
[1719138243876,0.07519953,64474.0,64473.0,1.3433405]
[1719138245083,0.12944478,64476.0,64473.0,1.3433405]
[1719138245290,0.00965686,64474.0,64473.0,1.3433405]
[1719138245486,0.03394012,64474.0,64473.0,1.3433405]
[1719138246116,0.03394012,64474.0,64473.0,1.3293405]
[1719138246274,0.03394012,64474.0,64473.0,1.3433405]
[1719138246731,0.03394012,64474.0,64473.0,1.3293405]
[1719138248223,0.03394012,64474.0,64473.0,1.3433405]
[1719138248401,0.03394022,64474.0,64473.0,1.3433405]
[1719138250193,0.03394022,64474.0,64473.0,1.36256189]
[1719138251481,0.02428326,64474.0,64473.0,1.36256189]
[1719138251681,0.00965695,64474.0,64473.0,1.36256189]
[1719138251858,0.03394021,64474.0,64473.0,1.36256189]
[1719138253076,0.02428326,64474.0,64473.0,1.36256189]
[1719138253301,0.557046,64474.0,64473.0,1.06046189]
[1719138253588,0.684746,64474.0,64473.0,1.06046189]
[1719138254554,0.6844892,64474.0,64473.0,1.06046189]
[1719138255954,0.6844892,64474.0,64473.0,1.04815639]
[1719138256366,0.6844892,64474.0,64473.0,1.06043795]
[1719138257638,0.63728626,64474.0,64473.0,1.06043795]
[1719138257947,0.6843161,64474.0,64473.0,1.06043795]
[1719138260243,0.84139764,64474.0,64473.0,1.06043795]
[1719138260679,0.7943678,64474.0,64473.0,1.06043795]
[1719138260830,0.79436845,64474.0,64473.0,1.06043795]
[1719138261042,0.84123886,64474.0,64473.0,1.06043795]
[1719138261257,0.73618141,64474.0,64473.0,1.06043795]
[1719138261463,0.74583852,64474.0,64473.0,1.06043795]
[1719138262377,0.54188626,64474.0,64473.0,1.06043795]
[1719138262580,0.74587991,64474.0,64473.0,1.06043795]
[1719138264144,0.74589731,64474.0,64473.0,1.06043795]
[1719138264915,0.71359731,64474.0,64473.0,1.06043795]
[1719138265115,0.55651851,64474.0,64473.0,1.06043795]
[1719138265656,0.55651851,64474.0,64473.0,1.05319474]
[1719138265864,0.71359731,64474.0,64473.0,1.05319474]
[1719138267900,0.71359731,64474.0,64473.0,1.21309474]
[1719138268077,0.69359731,64474.0,64473.0,1.21309474]
[1719138268283,0.55651851,64474.0,64473.0,1.21309474]
[1719138270084,0.5366121,64474.0,64473.0,1.21309474]
[1719138270751,0.53661142,64474.0,64473.0,1.21309474]
[1719138271705,0.22640942,64474.0,64473.0,1.21309474]
[1719138271887,0.22641838,64474.0,64473.0,1.21309474]
[1719138273421,0.1890414,64474.0,64473.0,1.21309474]
[1719138273758,0.25607937,64474.0,64473.0,1.21309474]
[1719138274316,0.24642223,64474.0,64473.0,1.21309474]
[1719138276356,0.19938426,64474.0,64473.0,1.21309474]
[1719138276555,0.24652031,64474.0,64473.0,1.21309474]
[1719138279489,0.19938426,64474.0,64473.0,1.21309474]
[1719138279715,0.24651555,64474.0,64473.0,1.21309474]
[1719138280220,0.24646193,64474.0,64473.0,1.21309474]
[1719138280449,0.19938426,64474.0,64473.0,1.21309474]
[1719138280691,0.24646193,64474.0,64473.0,1.21309474]
[1719138281403,0.2464596,64474.0,64473.0,1.21309474]
[1719138282852,0.24645926,64474.0,64473.0,1.21309474]
[1719138285944,0.19938426,64474.0,64473.0,1.21309474]
[1719138286151,0.24653966,64474.0,64473.0,1.21309474]
[1719138289173,0.2465437,64474.0,64473.0,1.21309474]
[1719138289722,0.23688675,64474.0,64473.0,1.21309474]
[1719138289934,0.24654421,64474.0,64473.0,1.21309474]
[1719138290725,0.24654421,64474.0,64473.0,1.21402974]
[1719138291197,0.24739421,64474.0,64473.0,1.21402974]
[1719138292205,0.40449918,64474.0,64473.0,1.21402974]
[1719138292427,0.3573419,64474.0,64473.0,1.21402974]
[1719138292548,0.40448815,64474.0,64473.0,1.21402974]
[1719138293988,0.24738051,64474.0,64473.0,1.21402974]
[1719138294388,0.22738051,64474.0,64473.0,1.21402974]
[1719138294753,0.24738051,64474.0,64473.0,1.21402974]
[1719138295392,0.24729944,64474.0,64473.0,1.21402974]
[1719138298406,0.20023426,64474.0,64473.0,1.21402974]
[1719138298627,0.24708913,64474.0,64473.0,1.21402974]
[1719138299006,0.20023426,64474.0,64473.0,1.21402974]
[1719138299210,0.24708913,64474.0,64473.0,1.21402974]
[1719138300108,0.24729725,64474.0,64473.0,1.21402974]
[1719138301171,0.24729262,64474.0,64473.0,1.21402974]
[1719138304063,0.24714256,64474.0,64473.0,1.21402974]
[1719138305449,0.22714256,64474.0,64473.0,1.21402974]
[1719138305679,0.24714256,64474.0,64473.0,1.21402974]
[1719138306453,0.11572635,64475.0,64473.0,1.21402974]
[1719138307226,0.155101,64474.0,64473.0,1.21402974]
[1719138307377,0.155101,64474.0,64473.0,1.18602974]
[1719138307578,0.155101,64474.0,64473.0,1.20002974]
[1719138307779,0.155101,64474.0,64473.0,1.21402974]
[1719138308212,0.155101,64474.0,64473.0,1.20002974]
[1719138308566,0.155101,64474.0,64473.0,1.21402974]
[1719138309281,0.155101,64474.0,64473.0,1.20002974]
[1719138309601,0.155101,64474.0,64473.0,1.21402974]
[1719138311416,0.31224796,64474.0,64473.0,1.21402974]
[1719138312780,0.01569903,64474.0,64473.0,1.21402974]
[1719138312975,0.17080003,64474.0,64473.0,1.21402974]
[1719138313323,0.155101,64474.0,64473.0,1.21402974]
[1719138314424,0.18743547,64474.0,64473.0,1.21402974]
[1719138316453,0.155101,64474.0,64473.0,1.21402974]
[1719138316827,0.21157106,64474.0,64473.0,1.21402974]
[1719138317030,0.21157108,64474.0,64473.0,1.21402974]
[1719138318191,0.21156079,64474.0,64473.0,1.21402974]
[1719138319572,0.17938449,64474.0,64473.0,1.21402974]
[1719138319772,0.21156171,64474.0,64473.0,1.21402974]
[1719138322680,0.17938449,64474.0,64473.0,1.21402974]
[1719138322890,0.21160355,64474.0,64473.0,1.21402974]
[1719138325861,0.17938449,64474.0,64473.0,1.21402974]
[1719138326099,0.21162685,64474.0,64473.0,1.21402974]
[1719138326315,0.17938449,64474.0,64473.0,1.21402974]
[1719138326539,0.21161856,64474.0,64473.0,1.21402974]
[1719138327702,0.21160364,64474.0,64473.0,1.21402974]
[1719138328975,0.17938449,64474.0,64473.0,1.21402974]
[1719138329208,0.2116033,64474.0,64473.0,1.21402974]
[1719138331916,0.11758593,64475.0,64473.0,1.21402974]
[1719138332130,0.311043,64476.0,64473.0,1.21402974]
[1719138332333,0.0242833,64475.0,64473.0,1.21402974]
[1719138332691,0.155101,64474.0,64473.0,1.21402974]
[1719138332907,0.1793843,64474.0,64473.0,1.20002974]
[1719138333108,0.1793843,64474.0,64473.0,1.21402974]
[1719138333839,0.1793843,64474.0,64473.0,1.20002974]
[1719138334056,0.1793843,64474.0,64473.0,1.21402974]
[1719138334260,0.1793843,64474.0,64473.0,1.20002974]
[1719138334608,0.1793843,64474.0,64473.0,1.21402974]
[1719138334808,0.1793843,64474.0,64473.0,1.20002974]
[1719138335216,0.1793843,64474.0,64473.0,1.21402974]
[1719138340005,0.2078018,64474.0,64473.0,1.21402974]
[1719138340767,0.20780563,64474.0,64473.0,1.21402974]
[1719138340957,0.20780563,64474.0,64473.0,1.19480835]
[1719138341531,0.1793843,64474.0,64473.0,1.19480835]
[1719138341728,0.20780587,64474.0,64473.0,1.19480835]
[1719138344768,0.20774193,64474.0,64473.0,1.19480835]
[1719138345207,0.1793843,64474.0,64473.0,1.19480835]
[1719138345410,0.20774193,64474.0,64473.0,1.19480835]
[1719138346665,0.20774188,64474.0,64473.0,1.19480835]
[1719138348008,0.1793843,64474.0,64473.0,1.19480835]
[1719138348299,0.20783421,64474.0,64473.0,1.19480835]
[1719138353093,0.20796384,64474.0,64473.0,1.19480835]
[1719138354410,0.20782613,64474.0,64473.0,1.19480835]
[1719138355081,0.20785493,64474.0,64473.0,1.19480835]
[1719138356164,0.2079924,64474.0,64473.0,1.19480835]
[1719138357462,0.1793843,64474.0,64473.0,1.19480835]
[1719138357704,0.20823721,64474.0,64473.0,1.19480835]
[1719138360590,0.20824144,64474.0,64473.0,1.19480835]
[1719138362864,0.20794244,64474.0,64473.0,1.19480835]
[1719138363530,0.20794247,64474.0,64473.0,1.19480835]
[1719138364752,0.20777067,64474.0,64473.0,1.19480835]
[1719138365367,0.36495051,64474.0,64473.0,1.19480835]
[1719138365998,0.33656519,64474.0,64473.0,1.19480835]
[1719138366164,0.36470493,64474.0,64473.0,1.19480835]
[1719138367320,0.67490693,64474.0,64473.0,1.19480835]
[1719138368918,0.51772604,64474.0,64473.0,1.19480835]
[1719138369122,0.67480555,64474.0,64473.0,1.19480835]
[1719138372215,0.67476957,64474.0,64473.0,1.19480835]
[1719138372424,0.51760474,64474.0,64473.0,1.19480835]
[1719138372861,0.517133,64474.0,64473.0,1.19480835]
[1719138373546,0.67429931,64474.0,64473.0,1.19480835]
[1719138375428,0.67467384,64474.0,64473.0,1.19480835]
[1719138378486,0.6467417,64474.0,64473.0,1.19480835]
[1719138378687,0.67468343,64474.0,64473.0,1.19480835]
[1719138381423,0.51752803,64474.0,64473.0,1.19480835]
[1719138381622,0.67468094,64474.0,64473.0,1.19480835]
[1719138382003,0.4895863,64474.0,64473.0,1.19480835]
[1719138382210,0.67380678,64474.0,64473.0,1.19480835]
[1719138383411,0.4895863,64474.0,64473.0,1.19480835]
[1719138383649,0.67377703,64474.0,64473.0,1.19480835]
[1719138384754,0.67374986,64474.0,64473.0,1.19480835]
[1719138387887,0.6467325,64474.0,64473.0,1.19480835]
[1719138388092,0.67374738,64474.0,64473.0,1.19480835]
[1719138389798,0.98394938,64474.0,64473.0,1.19480835]
[1719138390722,0.98394938,64474.0,64473.0,1.03490835]
[1719138390936,1.46115138,64474.0,64473.0,1.03490835]
[1719138391157,1.02484665,64474.0,64473.0,1.03490835]
[1719138391391,1.20697258,64474.0,64473.0,1.03490835]
[1719138391610,1.20697479,64474.0,64473.0,1.03490835]
[1719138392067,1.20697479,64474.0,64473.0,1.02090835]
[1719138392284,1.20697479,64474.0,64473.0,1.00690835]
[1719138392507,1.20697479,64474.0,64473.0,1.03090835]
[1719138392928,1.20873851,64474.0,64473.0,1.03090835]
[1719138394263,1.20873177,64474.0,64473.0,1.03090835]
[1719138397582,1.2088334,64474.0,64473.0,1.03090835]
[1719138399004,1.3321334,64474.0,64473.0,1.03090835]
[1719138399434,1.35371298,64474.0,64473.0,1.03090835]
[1719138399639,1.37800024,64474.0,64473.0,1.03090835]
[1719138400517,1.37807446,64474.0,64473.0,1.03090835]
[1719138400845,1.25477447,64474.0,64473.0,1.03090835]
[1719138401080,1.85197549,64474.0,64473.0,1.03090835]
[1719138401336,1.88092132,64474.0,64473.0,1.03090835]
[1719138403881,1.88092111,64474.0,64473.0,1.03090835]
[1719138405658,1.79379911,64474.0,64473.0,1.03090835]
[1719138406566,1.73169911,64474.0,64473.0,1.03090835]
[1719138406938,1.44804749,64474.0,64473.0,1.03090835]
[1719138407143,1.47699381,64474.0,64473.0,1.03090835]
[1719138410026,1.44804749,64474.0,64473.0,1.03090835]
[1719138410230,1.4768981,64474.0,64473.0,1.03090835]
[1719138410885,1.3779391,64474.0,64473.0,1.03090835]
[1719138411194,1.2546651,64474.0,64473.0,1.03090835]
[1719138411603,1.0876651,64474.0,64473.0,1.03090835]
[1719138411805,1.1076651,64474.0,64473.0,1.03090835]
[1719138413257,1.07881449,64474.0,64473.0,1.03090835]
[1719138413459,1.10771991,64474.0,64473.0,1.03090835]
[1719138414070,1.08771991,64474.0,64473.0,1.03090835]
[1719138414409,1.10771991,64474.0,64473.0,1.03090835]
[1719138416347,1.07881449,64474.0,64473.0,1.03090835]
[1719138416567,1.10773616,64474.0,64473.0,1.03090835]
[1719138417695,1.13534723,64474.0,64473.0,1.03090835]
[1719138419444,1.10642556,64474.0,64473.0,1.03090835]
[1719138419648,1.13533811,64474.0,64473.0,1.03090835]
[1719138420027,1.135338,64474.0,64473.0,1.03090835]
[1719138421282,1.136188,64474.0,64473.0,1.03090835]
[1719138421904,1.13615715,64474.0,64473.0,1.03090835]
[1719138422295,1.11615715,64474.0,64473.0,1.03090835]
[1719138422646,1.13615715,64474.0,64473.0,1.03090835]
[1719138422812,1.11615715,64474.0,64473.0,1.03090835]
[1719138427332,1.13615715,64474.0,64473.0,1.03090835]
[1719138427553,1.13637715,64474.0,64473.0,1.03090835]
[1719138428013,1.11637715,64474.0,64473.0,1.03090835]
[1719138428231,1.11636758,64474.0,64473.0,1.03090835]
[1719138428456,1.1452396,64474.0,64473.0,1.03090835]
[1719138428682,1.1452396,64474.0,64473.0,1.32380835]
[1719138428683,0.80616558,64474.0,64473.0,1.32380835]
[1719138428902,0.23820845,64474.0,64473.0,1.32380835]
[1719138429724,0.54841045,64474.0,64473.0,1.32380835]
[1719138429955,0.5487808,64474.0,64473.0,1.32380835]
[1719138430160,0.5487808,64474.0,64473.0,1.31152679]
[1719138430491,0.5487808,64474.0,64473.0,1.32423601]
[1719138430689,0.0834778,64474.0,64473.0,1.32423601]
[1719138431306,0.08366518,64474.0,64473.0,1.32423601]
[1719138434284,0.08379512,64474.0,64473.0,1.32423601]
[1719138434481,0.23889612,64474.0,64473.0,1.32423601]
[1719138434713,0.11015885,64476.0,64473.0,1.03133601]
[1719138434908,0.17938238,64475.0,64474.0,0.2945]
[1719138435111,0.17938238,64475.0,64474.0,0.30720901]
[1719138437695,0.17938238,64475.0,64474.0,0.31620901]
[1719138437914,0.17538238,64475.0,64474.0,0.31620901]
[1719138438115,0.17538238,64475.0,64474.0,0.33020901]
[1719138442480,0.48557938,64475.0,64474.0,0.33020901]
[1719138442844,0.50899523,64475.0,64474.0,0.33020901]
[1719138443652,0.48557938,64475.0,64474.0,0.33020901]
[1719138443852,0.50899523,64475.0,64474.0,0.33020901]
[1719138446764,0.48557938,64475.0,64474.0,0.33020901]
[1719138446968,0.53212202,64475.0,64474.0,0.33020901]
[1719138447401,0.50884866,64475.0,64474.0,0.33020901]